Workbook

Sheet MSU
B1: Juha Toropainen | E1: 27.4.1966
B2: SUPERPESIS | E2: Runkosarja | I2: Kärkilyönnit (KL), pesänvälit | P2: Runkosarja TOP-30 | U2: Ylempi loppusarja | AB2: Ylempi loppusarja TOP-10 | AG2: Play off, voitot, voittoprosentti | AL2: Arvo-ottelut | AO2: Mitalit
B3: Vuosi | C3: Sija | D3: Seura | E3: OTT | F3: KUN | G3: LÖI | H3: TOI | I3: KL | J3: 0 > 1 | K3: 1 > 2 | L3: 2 > 3 | M3: 3 > k | N3: KL-% | P3: LÖI | Q3: TOI | R3: L+T | S3: KL | U3: OTT | V3: KUN | W3: LÖI | X3: TOI | Y3: KL | Z3: KL-% | AB3: LÖI | AC3: TOI | AD3: L+T | AE3: KL | AG3: Puolivälierät | AH3: Välierät | AI3: Pronssi | AJ3: Finaalit | AL3: IL | AM3: LL | AN3: Cup | AO3: K | AP3: H | AQ3: P
B4: 1984 | C4: 4. | D4: KiU | E4: 18 | F4: 0 | G4: 9 | H4: 6 | I4: 51 | J4: 20 | K4: 9 | L4: 13 | M4: 9 | N4: 42.5 % | U4: 2 | V4: 0 | W4: 0 | X4: 1 | Y4: 5 | Z4: 55.6 % | AA4: 0 | AG4: Mitalisarja 4.
B5: 1985 | C5: 5. | D5: KiU | E5: 19 | F5: 1 | G5: 12 | H5: 17 | I5: 51 | J5: 13 | K5: 13 | L5: 12 | M5: 13 | N5: 37.2 % | AA5: 0
B6: 1986 | C6: 6. | D6: KiU | E6: 2 | F6: 0 | G6: 1 | H6: 0 | I6: 2 | J6: 0 | K6: 0 | L6: 1 | M6: 1 | N6: 18.2 % | U6: 1 | V6: 0 | W6: 0 | X6: 0 | Y6: 0 | Z6: 0.0 % | AG6: Loppusarja 6.
B7: 1987 | C7: 7. | D7: ToU | F7: ykkössarja | AA7: 0
B8: 1988 | C8: 10. | D8: ToU | F8: ykkössarja | AA8: 0
B9: 1989 | C9: 4. | D9: PKP | F9: ykkössarja | AA9: 66
B10: 1990 | C10: 13. | D10: KiPa | E10: 10 | F10: 1 | G10: 4 | H10: 6 | I10: 43 | J10: 11 | K10: 12 | L10: 15 | M10: 5 | N10: 51.7 %
B11: 1990 | C11: 2. | D11: IPV | E11: 7 | F11: 0 | G11: 3 | H11: 0 | I11: 15 | J11: 1 | K11: 6 | L11: 5 | M11: 3 | N11: 51.4 % | U11: 7 | V11: 0 | W11: 3 | X11: 1 | Y11: 11 | Z11: 35.5 % | AG11: 2-0 VM | AH11: 2-0 KaMa | AJ11: 1-2 SoJy | AP11: 1
B12: 1991 | C12: 5. | D12: KiPa | E12: 25 | F12: 0 | G12: 9 | H12: 9 | I12: 57 | J12: 12 | K12: 12 | L12: 24 | M12: 9 | N12: 37.7 % | U12: 1 | V12: 0 | W12: 0 | X12: 1 | Y12: 3 | Z12: 60.0 % | AA12: 0 | AG12: 0-2 SMJ
B13: 1992 | C13: 9. | D13: KiPa | E13: 24 | F13: 0 | G13: 3 | H13: 3 | I13: 49 | J13: 20 | K13: 8 | L13: 18 | M13: 3 | N13: 31.6 % | AA13: 0
B14: Yhteensä | E14: 105 | F14: 2 | G14: 41 | H14: 41 | I14: 268 | J14: 77 | K14: 60 | L14: 88 | M14: 43 | N14: 39.0 % | P14: 0-0-0 | Q14: 0-0-0 | R14: 0-0-0 | S14: 0-0-0 | U14: 11 | V14: =PRODUCT(F20) -> 0 | W14: 3 | X14: 3 | Y14: 19 | Z14: 41.3 % | AA14: =SUM(AA3:AA13) -> 66 | AB14: 0-0-0 | AC14: 0-0-0 | AD14: 0-0-0 | AE14: 0-0-0 | AG14: 1/2 | AH14: 1/1 | AI14: 0/0 | AJ14: 0/1 | AL14: 0 | AM14: 0 | AN14: 0 | AO14: 0 | AP14: 1 | AQ14: 0
AG15: 50.0 % | AH15: 100.0 % | AI15: 0.0 % | AJ15: 0.0 %
B16: Pesispörssi | D16: 194.0
B18: URA SUPERISSA | E18: OTT | F18: KUN | G18: LÖI | H18: TOI | I18: KL | K18: ka/L | L18: ka/T | M18: ka/KL | N18: KL-% | P18: ENSIMMÄISET RUNKOSARJASSA | AG18: ENSIMMÄISET PUDOTUSPELEISSÄ | AL18: YLEISÖ
B19: Runkosarja | E19: 105 | F19: 2 | G19: 41 | H19: 41 | I19: 268 | K19: 0.41 | L19: 0.39 | M19: 2.55 | N19: 39.0 % | P19: Ottelu | R19: 06.05. 1984 KiU - SiiPo 4-19 | Y19: 1. ottelu | AA19: 18 v 0 kk 9 pv | AG19: Ottelu | AH19: 1. 15.08. 1984 AA - KiU 0-8 | AL19: 1711 | AN19: 18 v 3 kk 19 pv
B20: Ylempi loppusarja | E20: 11 | F20: 0 | G20: 3 | H20: 3 | I20: 19 | K20: 0.27 | L20: 0.27 | M20: 1.73 | N20: 41.3 % | P20: Lyöty | R20: 09.05. 1984 HP - KiU 4-9 | Y20: 2. ottelu | AA20: 18 v 0 kk 12 pv | AG20: Lyöty | AH20: 4. 15.08. 1990 IPV - VM 3-2 | AL20: 2826 | AN20: 24 v 3 kk 19 pv
B21: Alempi loppusarja | P21: Tuotu | R21: 06.05. 1984 KiU - SiiPo 4-19 | Y21: 1. ottelu | AA21: 18 v 0 kk 9 pv | AG21: Tuotu | AH21: 1. 15.08. 1984 AA - KiU 0-8 | AL21: 1711 | AN21: 18 v 3 kk 19 pv
B22: KAIKKI | E22: 116 | F22: 2 | G22: 44 | H22: 44 | I22: 287 | K22: 0.40 | L22: 0.38 | M22: 2.47 | N22: 39.2 % | P22: Kunnari | R22: 09.06. 1985 KiU - VM 13-6 | Y22: 31. ottelu | AA22: 19 v 1 kk 13 pv | AG22: Kunnari
B24: Seurat | D24: KiU = Kiteen Urheilijat (1931)
D25: ToU = Tohmajärven Urheilijat (1934)
D26: PKP = Puurtilan Kisa-Pojat (1948)
D27: KiPa = Kiteen Pallo-90 (1990)
D28: IPV = Imatran Pallo-Veikot (1955)

Sheet MYP
B1: Juha Toropainen | E1: 27.4.1966
B2: YKKÖSPESIS | E2: Runkosarja | L2: Runkosarja TOP-10 | Q2: Jatkosarjat | X2: SUOMENSARJA | AA2: Runkosarja | AH2: Runkosarja TOP-10 | AM2: Jatkosarjat
B3: Vuosi | C3: Sija | D3: Seura | E3: OTT | F3: KUN | G3: LÖI | H3: TOI | I3: KL | J3: KL-% | L3: LÖI | M3: TOI | N3: L+T | O3: KL | Q3: OTT | R3: KUN | S3: LÖI | T3: TOI | U3: KL | V3: KL-% | X3: Vuosi | Y3: Sija | Z3: Seura | AA3: OTT | AB3: KUN | AC3: LÖI | AD3: TOI | AE3: KL | AF3: KL-% | AH3: LÖI | AI3: TOI | AJ3: L+T | AK3: KL | AM3: OTT | AN3: KUN | AO3: LÖI | AP3: TOI | AQ3: KL | AR3: KL-%
B4: 1987 | C4: 7. | D4: ToU | E4: 22 | F4: 0 | G4: 8 | H4: 8
B5: 1988 | C5: 10. | D5: ToU | E5: 22 | F5: 0 | G5: 9 | H5: 12
B6: 1989 | C6: 4. | D6: PKP | E6: 22 | F6: 0 | G6: 27 | H6: 18
B7: YHTEENSÄ | E7: =SUM(E4:E6) -> 66 | F7: =SUM(F4:F6) -> 0 | G7: =SUM(G4:G6) -> 44 | H7: =SUM(H4:H6) -> 38 | I7: =SUM(I4:I6) -> 0 | J7: 0.0 % | K7: =SUM(K4:K6) -> 0 | Q7: =SUM(Q4:Q6) -> 0 | R7: =SUM(R4:R6) -> 0 | S7: =SUM(S4:S6) -> 0 | T7: =SUM(T4:T6) -> 0 | U7: =SUM(U4:U6) -> 0 | V7: 0.0 % | W7: =SUM(W4:W6) -> 0 | X7: YHTEENSÄ | AA7: =SUM(AA4:AA6) -> 0 | AB7: =SUM(AB4:AB6) -> 0 | AC7: =SUM(AC4:AC6) -> 0 | AD7: =SUM(AD4:AD6) -> 0 | AE7: =SUM(AE4:AE6) -> 0 | AF7: 0.0 % | AG7: =SUM(AG4:AG6) -> 0 | AM7: =SUM(AM4:AM6) -> 0 | AN7: =SUM(AN4:AN6) -> 0 | AO7: =SUM(AO4:AO6) -> 0 | AP7: =SUM(AP4:AP6) -> 0 | AQ7: =SUM(AQ4:AQ6) -> 0 | AR7: 0.0 % | AS7: =SUM(AS4:AS6) -> 0
B9: KAIKKI OTTELUT | E9: OTT | F9: KUN | G9: LÖI | H9: TOI | I9: KL | J9: KL-% | L9: ka/L | M9: ka/T | N9: ka/l+t | O9: ka/kl | R9: Seurat | T9: KiU = Kiteen Urheilijat (1931)
B10: SUPERPESIS | E10: 116 | F10: 2 | G10: 44 | H10: 44 | I10: 287 | J10: 39.2 % | K10: =PRODUCT(I10/J10) -> 732.1428571 | L10: =PRODUCT((F10+G10)/E10) -> 0.40 | M10: =PRODUCT(H10/E10) -> 0.38 | N10: =PRODUCT((F10+G10+H10)/E10) -> 0.78 | O10: =PRODUCT(I10/E10) -> 2.47 | T10: ToU = Tohmajärven Urheilijat (1934)
B11: YKKÖSPESIS | E11: =PRODUCT(E7+Q7) -> 66 | F11: =PRODUCT(F7+R7) -> 0 | G11: =PRODUCT(G7+S7) -> 44 | H11: =PRODUCT(H7+T7) -> 38 | I11: =PRODUCT(I7+U7) -> 0 | J11: 0.0 % | K11: =PRODUCT(K7+W7) -> 0 | L11: =PRODUCT((F11+G11)/E11) -> 0.67 | M11: =PRODUCT(H11/E11) -> 0.58 | N11: =PRODUCT((F11+G11+H11)/E11) -> 1.24 | O11: =PRODUCT(I11/E11) -> 0.00 | T11: PKP = Puurtilan Kisa-Pojat (1948)
B12: SUOMENSARJA | E12: =PRODUCT(AA7+AM7) -> 0 | F12: =PRODUCT(AB7+AN7) -> 0 | G12: =PRODUCT(AC7+AO7) -> 0 | H12: =PRODUCT(AD7+AP7) -> 0 | I12: =PRODUCT(AE7+AQ7) -> 0 | J12: 0.0 % | K12: =PRODUCT(AG7+AS7) -> 0 | L12: 0.00 | M12: 0.00 | N12: 0.00 | O12: 0.00 | T12: KiPa = Kiteen Pallo-90 (1990)
B13: YHTEENSÄ | E13: =SUM(E10:E12) -> 182 | F13: =SUM(F10:F12) -> 2 | G13: 88 | H13: 82 | I13: 287 | J13: 0.0 % | K13: =SUM(K10:K12) -> 732.1428571 | L13: =PRODUCT((F13+G13)/E13) -> 0.49 | M13: =PRODUCT(H13/E13) -> 0.45 | N13: =PRODUCT((F13+G13+H13)/E13) -> 0.95 | O13: 2.47

Sheet Arvo-ottelut
B1: ITÄ - LÄNSI - KORTTI
B2: Juha Toropainen | C2: 27.4.1966
B3: B-POJAT | C3: Itä - Länsi, tulos | D3: Joukkue | E3: Seura | G3: V | H3: T | I3: H | J3: Up. | K3: Lj. | L3: Palk. | M3: O | N3: K | O3: L | P3: T | Q3: KL | R3: 1 | S3: 2 | T3: 3 | U3: k | V3: KL-% | W3: Pelinjohtaja | X3: Yleisöä
B4: 24.07. 1982 Seinäjoki | C4: 14-4 | D4: Itä | E4: KiU | G4: 1 | K4: vai | M4: 1 | O4: 1 | P4: 1 | Q4: 2/2 | T4: 1/1 | U4: 1/1 | V4: 100.0 % | W4: Tommi Heinonen | X4: 300
B5: 23.07. 1983 Tyrnävä | C5: 12-9 | D5: Itä | E5: KiU | G5: 1 | J5: L | K5: 7 | L5: II p | M5: 1 | O5: 2 | Q5: 5/5 | R5: 1/1 | T5: 2/2 | U5: 2/2 | V5: 100.0 % | W5: Harri Haka | X5: 420
B6: Yhteensä | G6: 2 | M6: =SUM(M4:M5) -> 2 | O6: 3 | P6: 1 | Q6: 7/7 | R6: 1/1 | T6: 3/3 | U6: 3/3 | V6: 100.0 %
B8: A-POJAT | C8: Itä - Länsi, tulos | D8: Joukkue | E8: Seura | G8: V | H8: T | I8: H | J8: Up. | K8: Lj. | L8: Palk. | M8: O | N8: K | O8: L | P8: T | Q8: KL | R8: 1 | S8: 2 | T8: 3 | U8: k | V8: KL-% | W8: Pelinjohtaja | X8: Yleisöä
B9: 14.07. 1984 Pori | C9: 6-4 | D9: Itä | E9: KiU | G9: 1 | J9: L | K9: 3 | M9: 1 | Q9: 2/5 | R9: 0/1 | S9: 1/2 | T9: 1/1 | U9: 0/1 | V9: 40.0 % | W9: Pekka Arffman
B10: 19.07. 1985 Kitee | C10: 5-22 | D10: Itä | E10: KiU | I10: 1 | M10: 1 | W10: Pekka Arffman | X10: 950
B11: Yhteensä | G11: 1 | I11: 1 | M11: =SUM(M9:M10) -> 2 | Q11: 2/5 | R11: 0/1 | S11: 1/2 | T11: 1/1 | U11: 0/1 | V11: 40.0 %

Sheet Kärkilyönnit
B1: KÄRKILYÖNNIT RUNKOSARJASSA | V1: VUOSITTAISET SIJOITUKSET TOP - 30
G2: 0 > 1 | J2: 1 > 2 | M2: 2 > 3 | P2: 3 > k | S2: Yhteensä
B3: Vuosi | C3: Sija | D3: Seura | E3: OTT | F3: KL | G3: YHT | H3: % | I3: KL | J3: YHT | K3: % | L3: KL | M3: YHT | N3: % | O3: KL | P3: YHT | Q3: % | R3: KL | S3: YHT | T3: % | V3: Vuosi | W3: Sija | X3: Seura | Y3: 0 > 1 | Z3: 1 > 2 | AA3: 2 > 3 | AB3: 3 > k | AC3: KL
B4: 1984 | C4: 4. | D4: KiU | E4: 18 | F4: 20 | G4: 38 | H4: =PRODUCT(F4/G4) -> 52.6 % | I4: 9 | J4: 33 | K4: =PRODUCT(I4/J4) -> 27.3 % | L4: 13 | M4: 30 | N4: =PRODUCT(L4/M4) -> 43.3 % | O4: 9 | P4: 19 | Q4: =PRODUCT(O4/P4) -> 47.4 % | R4: 51 | S4: =PRODUCT(G4+J4+M4+P4) -> 120 | T4: 42.5 % | V4: 1984 | W4: 4. | X4: KiU
B5: 1985 | C5: 5. | D5: KiU | E5: 19 | F5: 13 | G5: 43 | H5: 30.2 % | I5: 13 | J5: 29 | K5: 44.8 % | L5: 12 | M5: 37 | N5: 32.4 % | O5: 13 | P5: 28 | Q5: 46.4 % | R5: 51 | S5: 137 | T5: 37.2 % | V5: 1985 | W5: 5. | X5: KiU
B6: 1986 | C6: 6. | D6: KiU | E6: 2 | F6: 0 | G6: 1 | H6: 0.0 % | I6: 0 | J6: 2 | K6: 0.0 % | L6: 1 | M6: 4 | N6: 25.0 % | O6: 1 | P6: 4 | Q6: 25.0 % | R6: =PRODUCT(F6+I6+L6+O6) -> 2 | S6: 11 | T6: 18.2 % | V6: 1986 | W6: 6. | X6: KiU
B7: **** | V7: ****
B8: 1990 | C8: 12. | D8: KiPa | E8: 10 | F8: 1 | G8: 4 | H8: 25.0 % | I8: 6 | J8: 9 | K8: 66.7 % | L8: 5 | M8: 8 | N8: 62.5 % | O8: 3 | P8: 8 | Q8: 37.5 % | R8: 15 | S8: 29 | T8: =PRODUCT(R8/S8) -> 51.7 % | V8: 1990 | W8: 12. | X8: KiPa
B9: 1990 | C9: 3. | D9: IPV | E9: 7 | F9: 11 | G9: 18 | H9: 61.1 % | I9: 12 | J9: 22 | K9: 54.5 % | L9: 15 | M9: 23 | N9: 65.2 % | O9: 5 | P9: 22 | Q9: 22.7 % | R9: 43 | S9: 85 | T9: =PRODUCT(R9/S9) -> 50.6 % | V9: 1990 | W9: 3. | X9: IPV
B10: 1991 | C10: 5. | D10: KiPa | E10: 25 | F10: 12 | G10: 41 | H10: 29.3 % | I10: 12 | J10: 30 | K10: 40.0 % | L10: 24 | M10: 48 | N10: 50.0 % | O10: 9 | P10: 32 | Q10: 28.1 % | R10: =PRODUCT(F10+I10+L10+O10) -> 57 | S10: 151 | T10: =PRODUCT(R10/S10) -> 37.7 % | V10: 1991 | W10: 5. | X10: KiPa
B11: 1992 | C11: 9. | D11: KiPa | E11: 24 | F11: 20 | G11: 47 | H11: 42.6 % | I11: 8 | J11: 39 | K11: 20.5 % | L11: 18 | M11: 41 | N11: 43.9 % | O11: 3 | P11: 28 | Q11: 10.7 % | R11: 49 | S11: 155 | T11: 31.6 % | V11: 1992 | W11: 9. | X11: KiPa
B12: Yhteensä | E12: =SUM(E4:E11) -> 105 | F12: =SUM(F4:F11) -> 77 | G12: =SUM(G4:G11) -> 192 | H12: =PRODUCT(F12/G12) -> 40.1 % | I12: =SUM(I4:I11) -> 60 | J12: =SUM(J4:J11) -> 164 | K12: =PRODUCT(I12/J12) -> 36.6 % | L12: =SUM(L4:L11) -> 88 | M12: =SUM(M4:M11) -> 191 | N12: =PRODUCT(L12/M12) -> 46.1 % | O12: =SUM(O4:O11) -> 43 | P12: =SUM(P4:P11) -> 141 | Q12: =PRODUCT(O12/P12) -> 30.5 % | R12: =SUM(R4:R11) -> 268 | S12: =SUM(S4:S11) -> 688 | T12: =PRODUCT(R12/S12) -> 39.0 %
B14: KÄRKILYÖNNIT YLEMMISSÄ PUDOTUSPELEISSÄ | V14: VUOSITTAISET SIJOITUKSET TOP - 30
G15: 0 > 1 | J15: 1 > 2 | M15: 2 > 3 | P15: 3 > k | S15: Yhteensä
B16: Vuosi | C16: Sija | D16: Seura | E16: OTT | F16: KL | G16: YHT | H16: % | I16: KL | J16: YHT | K16: % | L16: KL | M16: YHT | N16: % | O16: KL | P16: YHT | Q16: % | R16: KL | S16: YHT | T16: % | V16: Vuosi | W16: Sija | X16: Seura | Y16: 0 > 1 | Z16: 1 > 2 | AA16: 2 > 3 | AB16: 3 > k | AC16: KL
B17: 1984 | C17: 4. | D17: KiU | E17: 2 | F17: 3 | G17: 4 | H17: 75.0 % | I17: 0 | J17: 0 | K17: 0.0 % | L17: 2 | M17: 2 | N17: 100.0 % | O17: 0 | P17: 3 | Q17: 0.0 % | R17: 5 | S17: 9 | T17: 55.6 % | V17: 1984 | W17: 4. | X17: KiU
B18: 1985 | C18: 5. | D18: KiU | V18: 1985 | W18: 5. | X18: KiU
B19: 1986 | C19: 6. | D19: KiU | E19: 1 | F19: 0 | G19: 0 | H19: 0.0 % | I19: 0 | J19: 0 | K19: 0.0 % | L19: 0 | M19: 0 | N19: 0.0 % | O19: 0 | P19: 1 | Q19: 0.0 % | R19: 0 | S19: 1 | T19: 0.0 % | V19: 1986 | W19: 6. | X19: KiU
B20: **** | V20: ****
B21: 1990 | C21: 2. | D21: IPV | E21: 7 | F21: 0 | G21: 0 | H21: 0.0 % | I21: 1 | J21: 2 | K21: 50.0 % | L21: 7 | M21: 13 | N21: 53.8 % | O21: 3 | P21: 16 | Q21: 18.8 % | R21: 11 | S21: 31 | T21: 35.5 % | V21: 1990 | W21: 2. | X21: IPV | AA21: 19. | AB21: 27.
B22: 1991 | C22: 5. | D22: KiPa | E22: 1 | F22: 1 | G22: 1 | H22: 100.0 % | I22: 0 | J22: 2 | K22: 0.0 % | L22: 2 | M22: 2 | N22: 100.0 % | O22: 0 | P22: 0 | Q22: 0.0 % | R22: 3 | S22: 5 | T22: 60.0 % | V22: 1991 | W22: 5. | X22: KiPa
B23: 1992 | C23: 9. | D23: KiPa | V23: 1992 | W23: 9. | X23: KiPa
B24: Yhteensä | E24: =SUM(E15:E23) -> 11 | F24: =SUM(F17:F23) -> 4 | G24: =SUM(G17:G23) -> 5 | H24: =PRODUCT(F24/G24) -> 80.0 % | I24: =SUM(I17:I23) -> 1 | J24: =SUM(J17:J23) -> 4 | K24: =PRODUCT(I24/J24) -> 25.0 % | L24: =SUM(L17:L23) -> 11 | M24: =SUM(M17:M23) -> 17 | N24: =PRODUCT(L24/M24) -> 64.7 % | O24: =SUM(O17:O23) -> 3 | P24: =SUM(P17:P23) -> 20 | Q24: =PRODUCT(O24/P24) -> 15.0 % | R24: =SUM(R17:R23) -> 19 | S24: =SUM(S17:S23) -> 46 | T24: =PRODUCT(R24/S24) -> 41.3 %
B26: KÄRKILYÖNNIT
G27: 0 > 1 | J27: 1 > 2 | M27: 2 > 3 | P27: 3 > k | S27: Yhteensä
E28: OTT | F28: KL | G28: YHT | H28: % | I28: KL | J28: YHT | K28: % | L28: KL | M28: YHT | N28: % | O28: KL | P28: YHT | Q28: % | R28: KL | S28: YHT | T28: %
B29: RUNKOSARJA | E29: =PRODUCT(E12) -> 105 | F29: 77 | G29: 192 | H29: 40.1 % | I29: 60 | J29: 164 | K29: 36.6 % | L29: 88 | M29: 191 | N29: 46.1 % | O29: 43 | P29: 141 | Q29: 30.5 % | R29: 268 | S29: 688 | T29: 39.0 %
B30: PLAY OFF | E30: =PRODUCT(E24) -> 11 | F30: =PRODUCT(F24) -> 4 | G30: 5 | H30: 80.0 % | I30: 1 | J30: 4 | K30: 25.0 % | L30: 11 | M30: 17 | N30: 64.7 % | O30: 3 | P30: 20 | Q30: 15.0 % | R30: 19 | S30: 46 | T30: 41.3 %
